bitfinex/quotes_SOLUSD_20250917
["timestamp","ask_amount","ask_price","bid_price","bid_amount"]
[1758117759224,33.3,235.41,235.38,0.66]
[1758117759425,33.3,235.41,235.37,5.7784796]
[1758117759649,33.3,235.41,235.37,4.24861272]
[1758117759873,34.02,235.41,235.37,4.24861272]
[1758117760241,33.3,235.41,235.38,2.18986688]
[1758117760556,33.3,235.41,235.4,4.24808836]
[1758117761573,34.02,235.41,235.36,1.58986688]
[1758117761745,33.3,235.41,235.36,4.30877325]
[1758117762140,0.72,235.4,235.36,4.30877325]
[1758117762969,0.72,235.39,235.36,4.30877325]
[1758117763344,1.52986688,235.39,235.36,0.06]
[1758117763541,0.72,235.38,235.36,0.06]
[1758117764859,1.52986688,235.39,235.36,0.06]
[1758117765454,0.72,235.39,235.36,4.30877463]
[1758117765648,33.3,235.41,235.36,4.96877463]
[1758117765848,0.72,235.4,235.36,0.06]
[1758117766241,2.24986688,235.4,235.36,0.06]
[1758117766950,2.24986688,235.4,235.36,4.30878673]
[1758117767351,0.72,235.4,235.36,4.30878673]
[1758117767548,0.72,235.4,235.36,0.06]
[1758117768078,34.82986688,235.41,235.36,4.30880578]
[1758117768263,34.82986688,235.41,235.36,4.96880578]
[1758117768443,0.72,235.4,235.36,0.06]
[1758117768763,0.72,235.4,235.36,4.30874528]
[1758117768962,0.72,235.46,235.38,1.52986688]
[1758117769156,1.52986688,235.44,235.38,1.52986688]
[1758117769357,34.82986688,235.45,235.39,1.52986688]
[1758117769672,1.52986688,235.45,235.39,1.52986688]
[1758117769846,33.3,235.44,235.39,2.18986688]
[1758117770046,34.02,235.44,235.39,1.52986688]
[1758117770446,34.02,235.44,235.39,2.18986688]
[1758117770879,34.02,235.44,235.4,4.24808836]
[1758117771458,33.3,235.44,235.4,4.90808836]
[1758117771959,33.3,235.44,235.4,6.43795524]
[1758117772946,33.3,235.44,235.4,16.39817614]
[1758117773276,33.3,235.44,235.4,4.24808836]
[1758117773459,33.3,235.44,235.4,5.77795524]
[1758117773849,33.3,235.44,235.41,3.11006047]
[1758117774045,33.3,235.44,235.4,4.24808836]
[1758117774046,33.3,235.44,235.43,2.39006047]
[1758117774270,33.3,235.44,235.43,3.11006047]
[1758117774889,33.3,235.44,235.43,7.35760751]
[1758117775091,0.03,235.47,235.43,17.97647511]
[1758117775260,0.03,235.47,235.46,2.39006047]
[1758117775683,0.03,235.47,235.46,3.11006047]
[1758117776861,0.03,235.47,235.46,4.96700586]
[1758117777175,0.03,235.47,235.46,7.35706633]
[1758117779459,0.03,235.5,235.46,17.97458098]
[1758117779661,0.03,235.5,235.49,2.39006047]
[1758117780167,0.03,235.5,235.49,3.11006047]
[1758117781164,0.03,235.5,235.49,7.35652528]
[1758117782673,131.7,235.63,235.49,39.20501141]
[1758117782986,33.31,235.64,235.6,2.39006047]
[1758117783302,33.97,235.64,235.59,4.24459648]
[1758117783506,33.97,235.64,235.6,2.39006047]
[1758117783795,33.31,235.64,235.6,3.10006047]
[1758117784502,33.31,235.64,235.6,2.39006047]
[1758117785115,0.03,235.64,235.6,7.34454264]
[1758117786915,0.03,235.64,235.6,17.95574807]
[1758117787088,0.03,235.64,235.63,2.39006047]
[1758117787410,1e-08,235.66,235.65,2.39006047]
[1758117787723,0.1,235.71,235.65,4.78012094]
[1758117787925,0.1,235.71,235.7,2.39006047]
[1758117788122,0.06,235.73,235.7,2.39006047]
[1758117788420,0.06,235.73,235.69,2.39006047]
[1758117788421,1e-08,235.73,235.72,2.39006047]
[1758117788792,1e-08,235.73,235.72,3.10006047]
[1758117789206,1e-08,235.73,235.72,7.34238186]
[1758117789898,1e-08,235.73,235.72,10.6396102]
[1758117790990,1e-08,235.74,235.72,5.37655352]
[1758117791190,1e-08,235.74,235.73,5.68728881]
[1758117791408,1e-08,235.74,235.73,6.39728881]
[1758117796104,0.06,235.77,235.74,4.24196148]
[1758117796292,0.06,235.77,235.76,5.68728881]
[1758117796699,1e-08,235.78,235.76,39.63728881]
[1758117796907,1e-08,235.79,235.77,6.39728881]
[1758117797114,1e-08,235.79,235.78,5.68728881]
[1758117797317,1e-08,235.79,235.78,6.39728881]
[1758117797626,1e-08,235.79,235.78,5.68728881]
[1758117797800,1e-08,235.79,235.78,6.39728881]
[1758117798407,1e-08,235.79,235.78,10.63853064]
[1758117799523,0.1,235.85,235.78,26.92892403]
[1758117799725,0.77,235.85,235.82,5.68728881]
[1758117800034,0.73,235.83,235.82,5.68728881]
[1758117800329,0.06,235.83,235.82,5.68728881]
[1758117800502,0.73,235.83,235.82,9.92781124]
[1758117800701,0.06,235.83,235.82,9.92781124]
[1758117801332,0.06,235.83,235.82,4.24052243]
[1758117801525,0.06,235.83,235.82,9.92781124]
[1758117802229,0.06,235.83,235.82,5.68728881]
[1758117802823,0.73,235.83,235.78,5.68728881]
[1758117803031,0.73,235.83,235.79,5.68728881]
[1758117803232,0.06,235.83,235.82,5.68728881]
[1758117804012,0.73,235.83,235.82,5.68728881]
[1758117804207,0.73,235.83,235.8,5.68728881]
[1758117804433,0.67,235.82,235.78,9.92842708]
[1758117804617,0.67,235.82,235.8,5.68728881]
[1758117805316,0.06,235.83,235.78,14.84424285]
[1758117805532,0.06,235.83,235.82,5.68728881]
[1758117806634,0.06,235.83,235.82,9.92781124]
[1758117807231,0.06,235.83,235.82,10.63781124]
[1758117807736,0.06,235.83,235.82,9.92781124]
[1758117808237,0.06,235.83,235.82,10.63781124]
[1758117808420,0.06,235.83,235.82,9.92781124]
[1758117808926,0.06,235.83,235.82,10.63781124]
[1758117809236,0.06,235.83,235.82,9.92781124]
[1758117809624,0.06,235.83,235.82,5.68728881]
[1758117809844,0.06,235.83,235.82,2.38134918]
[1758117810132,0.06,235.83,235.82,3.09134918]
[1758117810334,0.06,235.83,235.82,2.38134918]
[1758117811838,0.73,235.83,235.81,2.38134918]
[1758117812040,0.06,235.83,235.81,2.38134918]
[1758117812630,0.06,235.83,235.82,4.24052243]
[1758117812827,0.73,235.83,235.81,6.62195441]
[1758117813025,0.67,235.82,235.78,2.41134918]
[1758117813329,0.06,235.83,235.78,2.41134918]
[1758117813330,0.67,235.81,235.78,2.41134918]
[1758117813538,0.06,235.83,235.79,2.38134918]
[1758117813916,0.7,235.82,235.79,2.38134918]
[1758117814234,0.06,235.83,235.79,2.38134918]
[1758117814545,0.06,235.83,235.82,6.62187161]
[1758117815018,0.06,235.83,235.82,7.33187161]
[1758117815637,0.06,235.83,235.82,4.95052243]
[1758117815831,0.06,235.83,235.82,6.62187161]
[1758117816932,0.06,235.83,235.82,7.33187161]
[1758117818234,0.06,235.83,235.82,6.62187161]
[1758117818945,0.06,235.83,235.82,7.33187161]
[1758117820733,0.06,235.83,235.82,6.62187161]
[1758117822032,0.06,235.83,235.82,7.33187161]
[1758117823361,0.06,235.83,235.82,9.71322079]
[1758117824629,0.1,235.85,235.82,20.31452687]
[1758117824828,0.1,235.85,235.84,2.38134918]
[1758117825238,0.1,235.85,235.84,7.331512]
[1758117825634,0.06,235.86,235.84,7.331512]
[1758117825864,0.06,235.86,235.85,3.09134918]
[1758117826439,0.06,235.86,235.85,2.38134918]
[1758117827240,0.06,235.86,235.85,7.33133222]
[1758117828955,0.06,235.86,235.85,6.62133222]
[1758117829162,0.06,235.86,235.85,7.33133222]
[1758117831248,0.06,235.88,235.85,17.93128982]
[1758117831441,0.06,235.88,235.87,2.38134918]
[1758117831841,0.06,235.88,235.87,3.09134918]
[1758117832244,1e-08,235.89,235.87,3.09134918]
[1758117832469,1e-08,235.89,235.88,3.09134918]
[1758117832648,1e-08,235.91,235.88,36.29134918]
[1758117832849,1e-08,235.91,235.9,2.38134918]
[1758117833375,1e-08,235.91,235.9,7.34043353]
[1758117835779,1e-08,235.92,235.9,6.48104858]
[1758117836085,1e-08,235.94,235.91,2.24196423]
[1758117836262,1e-08,235.94,235.93,1.52196423]
[1758117836774,1e-08,235.94,235.93,35.42196423]
[1758117837285,1e-08,235.94,235.93,39.66050956]
[1758117837983,1e-08,235.94,235.93,45.74836648]
[1758117838588,1e-08,235.94,235.93,39.66050956]
[1758117838783,1e-08,235.94,235.93,41.18247379]
[1758117839165,0.1,236.03,235.93,72.97156376]
[1758117839388,0.1,236.03,236.02,5.7588933]
[1758117840687,0.1,236.07,236.06,1.52196423]
[1758117840986,0.1,236.07,236.06,2.24196423]
[1758117841371,0.1,236.07,236.06,6.47817536]
[1758117842564,0.82,236.07,236.06,4.23621113]
[1758117842782,0.1,236.07,236.06,5.75817536]
[1758117844076,0.1,236.07,236.03,4.23674956]
[1758117844077,0.79,236.07,236.03,4.23674956]
[1758117844283,0.69,236.06,236.04,1.52196423]
[1758117844593,0.1,236.07,236.04,1.52196423]
[1758117844878,0.1,236.07,236.06,1.52196423]
[1758117845381,0.1,236.07,236.05,1.52196423]
[1758117845382,0.79,236.07,236.05,1.52196423]
[1758117845580,0.69,236.06,236.05,5.75835482]
[1758117845898,0.1,236.07,236.05,5.75835482]
[1758117846096,0.1,236.07,236.06,1.52196423]
[1758117846769,0.79,236.07,236.06,1.52196423]
[1758117847065,0.1,236.07,236.06,5.75817536]
[1758117847587,0.1,236.07,236.05,1.52196423]
[1758117847891,0.1,236.07,236.06,1.52196423]
[1758117848269,0.1,236.07,236.05,0.68]
[1758117848477,0.1,236.07,236.06,1.52196423]
[1758117849291,0.1,236.07,236.06,5.75817536]
[1758117849497,0.1,236.07,236.06,4.23621113]
[1758117849799,0.1,236.07,236.06,5.75817536]
[1758117850667,0.1,236.07,236.06,6.43817536]
[1758117851589,1e-08,236.07,236.06,6.43817536]
[1758117852271,1e-08,236.07,236.06,39.59817536]
[1758117854802,1e-08,236.07,236.06,5.75817536]
[1758117855991,1e-08,236.07,236.06,6.43817536]
[1758117856188,1e-08,236.07,236.06,5.75817536]
[1758117856490,1e-08,236.07,236.06,6.43817536]
[1758117856691,1e-08,236.07,236.06,5.75817536]
[1758117857006,1e-08,236.07,236.06,4.23621113]
[1758117857392,1e-08,236.07,236.06,2.20196423]
[1758117858107,1e-08,236.07,236.06,1.52196423]
[1758117858306,1e-08,236.07,236.05,4.23639059]
[1758117858307,1e-08,236.07,236.05,1.52196423]
[1758117858482,1e-08,236.07,236.04,16.34994323]
[1758117858891,1e-08,236.07,236.05,1.52196423]
[1758117859107,1e-08,236.07,236.06,1.52196423]
[1758117859275,1e-08,236.07,236.06,39.59817536]
[1758117861188,1e-08,236.07,236.06,4.23621113]
[1758117861389,1e-08,236.07,236.04,16.34995948]
[1758117862609,0.69,236.06,236.04,14.82799525]
[1758117862810,0.69,236.06,236.04,4.23657007]
[1758117863410,0.69,236.05,236.03,0.03]
[1758117863785,1e-08,236.07,236.03,0.03]
[1758117864200,1e-08,236.07,236.03,1.55196423]
[1758117864811,1e-08,236.07,236.06,0.03]
[1758117867008,0.69000001,236.07,236.06,0.03]
[1758117868002,4.92603169,236.07,236.06,0.03]
[1758117870009,5.98612453,236.07,236.06,0.03]
[1758117870510,7.50808876,236.07,236.06,0.03]
[1758117871789,39.60799592,236.07,236.06,0.03]
[1758117872533,40.66805096,236.07,236.06,0.03]
[1758117874004,51.25813017,236.07,236.03,0.03]
[1758117874317,1.52196423,236.04,236.03,0.03]
[1758117874518,2.58201927,236.04,236.03,0.03]
[1758117874694,3.24201927,236.04,236.03,0.03]
[1758117874895,7.47858934,236.04,236.03,0.03]
[1758117875096,1.52196423,236.02,236.01,0.03]
[1758117875422,2.58224602,236.02,236.01,0.03]
[1758117875726,3.24224602,236.02,236.01,0.03]
[1758117876616,36.40224602,236.02,236.01,0.03]
[1758117876814,40.63917509,236.02,236.01,0.03]
[1758117877193,51.23149777,236.02,235.98,0.03]
[1758117877410,1.52196423,235.99,235.98,0.03]
[1758117877595,131.7,235.98,235.82,0.91]
[1758117877799,1.52196423,235.86,235.82,0.91]
[1758117877999,1.52196423,235.83,235.82,0.91]
[1758117878715,1.52196423,235.83,235.82,5.15052243]
[1758117879123,1.52196423,235.83,235.82,0.91]
[1758117879420,1.52196423,235.83,235.82,5.15052243]
[1758117880127,1.52196423,235.83,235.82,0.2]
[1758117882006,33.18,235.83,235.82,0.91]
[1758117882210,34.70196423,235.83,235.82,0.2]
[1758117882409,1.52196423,235.83,235.82,0.2]
[1758117882619,0.66,235.91,235.82,5.15052243]
[1758117882803,1.52196423,235.85,235.82,5.15052243]
[1758117882998,33.18,235.84,235.83,4.95034261]
[1758117883217,34.70196423,235.85,235.83,4.95034261]
[1758117883432,34.70196423,235.85,235.84,0.71]
[1758117883608,33.18,235.85,235.84,0.71]
[1758117883812,33.18,235.85,235.82,0.2]
[1758117884133,4.89903329,235.91,235.83,0.71]
[1758117884436,1.52196423,235.86,235.83,0.71]
[1758117884632,33.18,235.85,235.83,0.71]
[1758117885225,33.18,235.85,235.84,4.24016282]
[1758117885414,1.52196423,235.86,235.84,4.95016282]
[1758117885613,33.18,235.85,235.84,4.24016282]
[1758117886219,33.18,235.85,235.84,4.95016282]
[1758117886419,33.18,235.87,235.84,15.55056987]
[1758117886720,34.70196423,235.87,235.84,4.24016282]
[1758117886922,33.18,235.87,235.84,4.24016282]
[1758117887228,33.18,235.87,235.84,4.95016282]
[1758117887229,1.52196423,235.86,235.84,4.95016282]
[1758117887429,34.70196423,235.87,235.84,4.95016282]
[1758117887730,33.18,235.87,235.84,4.95016282]
[1758117888107,33.18,235.87,235.85,0.71]
[1758117888721,33.18,235.87,235.86,0.71]
[1758117889727,33.18,235.87,235.85,4.23984384]
[1758117890043,33.18,235.87,235.85,4.94984384]
[1758117891130,33.18,235.89,235.86,0.71]
[1758117891307,33.18,235.89,235.87,0.71]
[1758117891508,35.36196423,235.89,235.82,0.91]
[1758117891708,1.52196423,235.86,235.82,0.2]
[1758117892425,33.84,235.89,235.83,0.71]
[1758117892829,38.07928419,235.89,235.82,4.44050611]
[1758117893030,0.66,235.89,235.82,4.44050611]
[1758117893209,131.7,235.94,235.83,0.71]
[1758117893210,1.52196423,235.9,235.83,0.71]
[1758117893409,1.52196423,235.87,235.82,0.2]
[1758117893606,1.52196423,235.86,235.82,4.4405174]
[1758117893824,0.66,235.87,235.82,4.4405174]
[1758117893825,1.52196423,235.87,235.82,5.1005174]
[1758117894018,33.18,235.88,235.83,0.66]
[1758117894225,34.70196423,235.88,235.83,0.66]
[1758117895434,1.52196423,235.86,235.82,0.2]
[1758117895747,1.52196423,235.83,235.82,0.2]
[1758117895917,33.18,235.83,235.82,0.2]
[1758117896113,33.18,235.83,235.82,4.44052243]
[1758117896331,1.52196423,235.85,235.82,5.10052243]
[1758117896532,33.18,235.85,235.83,0.66]
[1758117896733,33.18,235.85,235.82,0.2]
[1758117896917,33.18,235.85,235.82,0.86]
[1758117897116,33.18,235.85,235.83,0.66]
[1758117897853,33.18,235.85,235.83,4.90018435]
[1758117898239,33.18,235.85,235.84,0.66]
[1758117899146,33.18,235.85,235.83,4.27018435]
[1758117899346,33.18,235.85,235.83,4.93018435]
[1758117900348,33.18,235.85,235.83,4.27018435]
[1758117900734,33.18,235.85,235.83,0.03]
[1758117901139,33.18,235.85,235.83,4.27025618]
[1758117902353,33.85,235.85,235.83,0.03]
[1758117902530,33.18,235.85,235.83,0.03]
[1758117902736,33.18,235.85,235.84,0.66]
[1758117904457,33.18,235.89,235.85,4.23998304]
[1758117904662,33.18,235.89,235.86,3.04160213]
[1758117904834,33.18,235.89,235.87,2.38160213]
[1758117905034,33.18,235.89,235.86,3.04160213]
[1758117905244,33.18,235.89,235.87,2.38160213]
[1758117905436,33.18,235.89,235.87,3.04160213]
[1758117905648,33.18,235.89,235.86,2.38160213]
[1758117906040,2.38160213,235.95,235.88,2.38160213]
[1758117906271,30.94,235.94,235.9,2.38160213]
[1758117906443,30.94,235.94,235.91,0.66]
[1758117906755,30.94,235.94,235.92,0.66]
[1758117907342,2.44160213,235.98,235.92,0.66]
[1758117907540,33.18,235.97,235.93,4.23854533]
[1758117907754,0.06,235.98,235.94,0.66]
[1758117907953,33.18,235.97,235.94,3.04160213]
[1758117908137,33.18,235.97,235.95,0.66]
[1758117908540,0.06,235.98,235.95,3.04160213]
[1758117908768,0.06,235.98,235.96,0.66]
[1758117908968,0.06,235.98,235.97,2.38160213]
[1758117909135,0.06,235.98,235.97,3.04160213]
[1758117909763,0.06,235.98,235.97,7.27942897]
[1758117910736,0.06,236.01,235.97,17.87399607]
[1758117910938,0.06,236.01,235.97,4.23782684]
[1758117911165,36.25160213,236.0,235.93,2.38160213]
[1758117911350,2.38160213,235.98,235.92,0.66]
[1758117911858,2.38160213,235.97,235.91,4.2387451]
[1758117912063,2.38160213,235.96,235.91,4.2387451]
[1758117912453,2.38160213,235.96,235.9,4.8990319]
[1758117912657,2.38160213,235.94,235.86,3.04160213]
[1758117912957,35.56160213,235.93,235.86,3.04160213]
[1758117913664,2.38160213,235.92,235.87,4.23962352]
[1758117913870,3.07160213,235.92,235.87,4.23962352]
[1758117914049,35.56160213,235.93,235.87,4.89962352]
[1758117914451,3.07160213,235.92,235.87,4.23962352]
[1758117914650,3.07160213,235.91,235.85,4.23998304]
[1758117915667,33.18,235.95,235.9,2.38160213]
[1758117915864,33.18,235.95,235.86,0.66]
[1758117915865,33.18,235.94,235.91,7.28050679]
[1758117916078,33.18,235.95,235.91,7.28050679]
[1758117916365,33.18,235.95,235.91,4.23890466]
[1758117916580,0.69,235.94,235.89,4.23909009]
[1758117917072,33.18,235.94,235.89,7.28069222]
[1758117918072,33.18,235.94,235.9,3.04160213]
[1758117918243,33.18,235.94,235.9,2.38160213]
[1758117918443,33.18,235.94,235.88,0.66]
[1758117918650,0.69,235.93,235.88,4.23942119]
[1758117918886,2.38160213,235.91,235.86,4.23974112]
[1758117919063,3.07160213,235.91,235.86,4.23974112]
[1758117919462,2.38160213,235.91,235.86,4.23974112]
[1758117919779,2.38160213,235.91,235.86,4.89974112]
[1758117920769,3.07160213,235.91,235.86,4.23974112]
[1758117920991,2.38160213,235.89,235.83,0.03]
[1758117921162,33.18,235.88,235.83,0.03]
[1758117921472,33.18,235.88,235.83,4.9303373]
[1758117921773,33.18,235.88,235.83,0.69]
[1758117921968,33.18,235.88,235.84,0.66]
[1758117922176,33.18,235.88,235.85,0.66]
[1758117923086,2.38160213,235.93,235.87,2.38160213]
[1758117923385,32.44,235.92,235.87,2.38160213]
[1758117923577,32.44,235.92,235.88,0.66]
[1758117923780,0.69,235.97,235.91,2.38160213]
[1758117923969,33.18,235.96,235.9,0.66]
[1758117924283,33.18,235.96,235.93,4.23854533]
[1758117924583,0.69,235.95,235.9,2.38160213]
[1758117924788,35.56160213,235.96,235.9,2.38160213]
[1758117924977,35.56160213,235.96,235.9,3.04160213]
[1758117925181,33.18,235.96,235.9,3.04160213]
[1758117925476,36.25160213,235.96,235.9,2.38160213]
[1758117925667,2.38160213,235.94,235.89,4.23922232]
[1758117925873,37.41813236,235.96,235.87,4.23946801]
[1758117925874,2.38160213,235.92,235.87,4.23946801]
[1758117926269,3.07160213,235.93,235.87,4.89946801]
[1758117926463,2.38160213,235.94,235.87,6.62107014]
[1758117926664,33.87,235.96,235.89,2.38160213]
[1758117926865,33.87,235.96,235.9,2.38160213]
[1758117927456,0.69,235.96,235.9,2.38160213]
[1758117927672,25.24,235.95,235.89,2.38160213]
[1758117928272,0.69,235.94,235.89,4.23913571]
[1758117928495,0.69,235.93,235.89,4.23913571]
[1758117928783,0.69,235.92,235.87,4.23947767]
[1758117929281,0.69,235.92,235.86,2.38160213]
[1758117929282,2.38160213,235.89,235.83,0.03]
[1758117929665,0.69,235.94,235.85,2.38160213]
[1758117929866,3.07160213,235.94,235.87,2.38160213]
[1758117930066,33.18,235.93,235.87,2.38160213]
[1758117930278,33.18,235.93,235.88,4.23944378]
[1758117930781,0.69,235.92,235.88,4.23944378]
[1758117931077,35.56160213,235.93,235.88,4.23944378]
[1758117931268,36.25160213,235.93,235.88,4.23944378]
[1758117932176,3.07160213,235.92,235.86,4.2397254]
[1758117932372,7.31042597,235.92,235.86,4.2397254]
[1758117932573,2.38160213,235.91,235.86,4.2397254]
[1758117932875,0.69,235.9,235.85,6.62157253]
[1758117933183,2.38160213,235.89,235.84,4.24014794]
[1758117933378,3.07160213,235.9,235.84,4.90014794]
[1758117933792,2.38160213,235.91,235.84,17.88215712]
[1758117933991,33.18,235.91,235.87,2.38160213]
[1758117934191,33.18,235.93,235.89,2.38160213]
[1758117934385,33.18,235.93,235.9,4.23898764]
[1758117934686,0.68,235.92,235.86,2.38160213]
[1758117934981,0.68,235.92,235.84,11.31014446]
[1758117934982,2.38160213,235.91,235.85,4.23998304]
[1758117935359,2.38160213,235.9,235.85,4.23998304]
[1758117935761,2.38160213,235.9,235.86,0.03]
[1758117936023,2.38160213,235.94,235.87,3.09160213]
[1758117936197,33.18,235.93,235.88,3.09160213]
[1758117936500,33.18,235.93,235.89,4.94909475]
[1758117936783,33.18,235.93,235.89,6.62069688]
[1758117936985,4.91748109,235.99,235.91,2.38160213]
[1758117937287,33.18,235.95,235.89,6.62069688]
[1758117937487,33.18,235.95,235.89,4.23909475]
[1758117937793,33.18,235.95,235.87,2.38160213]
[1758117937794,2.38160213,235.94,235.87,2.38160213]
[1758117938293,2.38160213,235.93,235.87,4.23962352]
[1758117938592,2.38160213,235.92,235.87,4.23962352]
[1758117938793,33.18,235.95,235.88,0.71]
[1758117939090,33.18,235.94,235.88,2.38160213]
[1758117939297,33.18,235.94,235.87,4.23962352]
[1758117939298,35.56160213,235.94,235.87,6.62122565]
[1758117940004,2.38160213,235.93,235.87,6.62122565]
[1758117940177,3.06160213,235.93,235.87,4.23962352]
[1758117940378,2.38160213,235.92,235.87,4.23962352]
[1758117940685,4.91869477,235.93,235.86,4.26978936]
[1758117940686,3.06160213,235.91,235.86,4.26978936]
[1758117940992,33.18,235.91,235.87,3.09160213]
[1758117941494,33.86,235.91,235.86,4.26978936]
[1758117942005,33.18,235.91,235.86,4.97978936]
[1758117942477,2.38160213,235.94,235.88,2.38160213]
[1758117942792,33.18,235.93,235.88,3.09160213]
[1758117943178,33.18,235.93,235.9,2.38160213]
[1758117943380,33.18,235.94,235.92,2.38160213]
[1758117943598,33.18,235.94,235.91,0.71]
[1758117943796,33.18,235.94,235.91,3.09160213]
[1758117944398,33.18,235.94,235.92,4.23872499]
[1758117944598,33.18,235.94,235.92,6.62032712]
[1758117944789,33.18,235.94,235.92,7.33032712]
[1758117944989,33.18,235.94,235.92,6.62032712]
[1758117945385,3.06160213,235.93,235.87,4.23962352]
[1758117945604,3.06160213,235.93,235.86,0.03]
[1758117945900,2.38160213,235.91,235.86,4.26966285]
[1758117946402,0.68,235.93,235.86,4.97966285]
[1758117946607,2.38160213,235.91,235.86,4.26966285]
[1758117946786,3.06160213,235.9,235.86,0.03]
[1758117947394,2.38160213,235.9,235.86,0.03]
[1758117947590,2.38160213,235.91,235.86,4.26977741]
[1758117947787,3.06160213,235.91,235.86,4.26977741]
[1758117949030,3.06160213,235.91,235.86,0.03]
[1758117949391,7.30050715,235.91,235.86,0.03]
[1758117950917,2.38160213,235.88,235.86,0.03]
[1758117951085,2.38160213,235.87,235.86,0.03]
[1758117951492,33.16,235.88,235.86,0.03]
[1758117952100,35.54160213,235.88,235.86,0.03]
[1758117953107,3.03160213,235.87,235.86,0.03]
[1758117953305,4.09250345,235.87,235.83,0.03]
[1758117953608,2.38160213,235.84,235.83,0.03]
[1758117953805,3.44250345,235.84,235.83,0.03]
[1758117954011,4.09250345,235.84,235.83,0.03]
[1758117955407,8.33266627,235.84,235.83,0.03]
[1758117957412,40.86266627,235.84,235.83,0.03]
[1758117957603,41.51266627,235.84,235.83,0.03]
[1758117958010,43.8942684,235.84,235.82,0.2]
[1758117958215,1.71090132,235.83,235.82,0.2]
[1758117958416,4.09250345,235.83,235.82,0.2]
[1758117958718,37.27250345,235.83,235.82,0.2]
[1758117958921,34.89090132,235.83,235.82,0.2]
[1758117959099,37.27250345,235.83,235.82,0.2]
[1758117959295,41.51284606,235.83,235.82,0.2]
[1758117959913,40.65652638,235.83,235.82,0.2]
[1758117960109,39.13124393,235.83,235.82,0.2]
[1758117960315,40.65652638,235.83,235.82,0.2]
[1758117961236,39.59562506,235.83,235.82,0.2]
[1758117962414,46.75799659,235.83,235.82,0.2]
[1758117963019,57.35885313,235.83,235.8,0.03]
[1758117963221,1.52528245,235.81,235.8,0.03]
[1758117963416,5.76598471,235.81,235.8,0.03]
[1758117963615,6.41598471,235.81,235.8,0.03]
[1758117963929,39.59598471,235.81,235.8,0.03]
[1758117964519,6.41598471,235.81,235.8,0.03]
[1758117964731,5.76598471,235.81,235.8,0.03]
[1758117964907,39.62598471,235.81,235.8,0.03]
[1758117967201,38.10070226,235.81,235.8,0.03]
[1758117967405,39.62598471,235.81,235.8,0.03]
[1758117967803,50.22774036,235.81,235.78,0.03]
[1758117968014,1.52528245,235.79,235.78,0.03]
[1758117968218,2.58676629,235.79,235.77,0.03]
[1758117968427,35.38528245,235.78,235.77,0.03]
[1758117969406,36.44685236,235.78,235.75,0.03]
[1758117969627,1.52528245,235.76,235.75,0.03]
[1758117969831,5.76688407,235.76,235.75,0.03]
[1758117970437,34.70528245,235.76,235.75,0.03]
[1758117970616,14.84266588,235.81,235.8,0.03]
[1758117970931,49.54794833,235.81,235.8,0.03]
[1758117972128,48.02266588,235.81,235.8,0.03]
[1758117972431,49.54794833,235.81,235.8,0.03]
[1758117972929,50.22794833,235.81,235.8,0.03]
[1758117974139,4.23980327,235.86,235.8,0.7]
[1758117974435,1.52528245,235.82,235.8,0.7]
[1758117974631,14.83951072,235.86,235.8,0.7]
[1758117974841,4.23980327,235.86,235.8,0.7]
[1758117975022,33.18,235.85,235.8,2.22528245]
[1758117975216,33.18,235.84,235.81,0.67]
[1758117975626,33.18,235.84,235.82,0.67]
[1758117975827,33.18,235.84,235.8,0.03]
[1758117976025,5.76562506,235.83,235.8,0.7]
[1758117976250,5.76562506,235.83,235.81,0.67]
[1758117976533,38.94544792,235.84,235.82,0.67]
[1758117976942,37.42016547,235.84,235.82,0.67]